Cogmind - Beta 15 @@@ ROGUE MODE // 2025.08.07 @ 12:59:17 // Halloween2019/Abominations Player: H3-RMN Result: Destroyed by Lesser Abomination with Particle Cannon Performance ------------- Evolutions (0) 0 Regions Visited (1) 200 Robots Destroyed (24) 120 Value Destroyed (848) 848 Prototype IDs (5) 100 Alien Tech Used (0) 0 Bonus (0) 0 TOTAL SCORE: 1268 Bonus ------- None Cogmind --------- Core Integrity 0/250 Matter 275/300 Energy 60/100 System Corruption 0% Temperature Warm (102) Movement Walking (330) Ox3 Location -10/Materials Parts ------- > --- POWER (1) -------- Faulty Heavy Ion Engine > --- PROPULSION (2) --- Aluminum Leg > --- UTILITY (2) ------ Large Storage Unit Core Shielding > --- WEAPON (2) ------- Particle Gun Improved Medium Laser > --- INVENTORY (15) --- Aluminum Leg High-capacity Battery (250) High-capacity Matter Pod (200) Terrain Scanner Medium Laser Small Laser Grenade Launcher Peak State ------------ > --- POWER ------------ Heavy Ion Engine > --- PROPULSION ------- Aluminum Leg Aluminum Leg > --- UTILITY ---------- Large Storage Unit Core Shielding > --- WEAPON ----------- Particle Gun Improved Medium Laser > --- INVENTORY -------- Aluminum Leg High-capacity Battery High-capacity Matter Pod Terrain Scanner Medium Laser Small Laser Grenade Launcher [Rating: 12] Favorites ----------- Power Light Ion Engine Engine Light Ion Engine Propulsion Light Treads Treads Light Treads Leg Aluminum Leg Wheel Compact Wheel Utility Large Storage Unit Device Seismic Detector Storage Large Storage Unit Protection Core Shielding Weapon Light Assault Rifle Energy Gun Improved Medium Laser Ballistic Gun Light Assault Rifle Launcher Grenade Launcher Build | -11 -10 ------- Run | Yrd Mat Slots Evolved . | . . Power . | . . Propulsion . | . . Utility . | . . Weapon . | . . Parts Attached 22 | 7 15 Power 3 | 1 2 Engine 3 | 1 2 Core . | . . Reactor . | . . Propulsion 7 | 2 5 Treads 2 | 2 . Leg 2 | . 2 Wheel 3 | . 3 Hover . | . . Flight . | . . Utility 4 | 2 2 Device 1 | 1 . Storage 2 | 1 1 Processor . | . . Hackware . | . . Protection 1 | . 1 Artifact . | . . Weapon 8 | 2 6 Energy Gun 3 | . 3 Energy Cannon . | . . Ballistic Gun 4 | 2 2 Ballistic Cannon . | . . Launcher 1 | . 1 Special Weapon . | . . Impact Weapon . | . . Slashing Weapon . | . . Piercing Weapon . | . . Special Melee Weapon . | . . Unidentified Prototypes 2 | . 2 Parts Lost 12 | . 12 Power 2 | . 2 Propulsion 5 | . 5 Utility 1 | . 1 Weapon 4 | . 4 Highest Loss Streak 6 | . 6 To Critical Strikes . | . . Average Backups 7 | 5 7 Power . | . . Propulsion 2 | 3 1 Utility 1 | . 2 Weapon 2 | . 3 Tool/Special . | . . Unused Backups 8 | . 8 Power . | . . Propulsion 4 | . 4 Utility 3 | . 3 Weapon 1 | . 1 Tool/Special . | . . Average Slot Usage (%) 94 | . 94 Engine 10 | . 10 Treads 11 | . 11 Leg 9 | . 9 Wheel 4 | . 4 Device 6 | . 6 Storage 14 | . 14 Protection 7 | . 7 Energy Gun 11 | . 11 Ballistic Gun 13 | . 13 Launcher 3 | . 3 Peak Build Rating 12 | 7 12 Average Rating 7 | 5 8 On Entrance 3 | . 7 Naked Turns . | . . Heaviest Build 35 | 11 35 Greatest Support 40 | 40 40 Greatest Overweight (x) 3 | . 3 Average Overweight (x) . | . . Largest Inventory Capacity 15 | 8 15 Average Capacity 12 | 6 13 Most Carried 13 | 8 13 Average Carried 7 | 5 7 Final Capacity 15 | 8 15 Final Carried 8 | 8 7 Class Distribution -------------------- 92% | Mutant 7% | Scavenger-Mutant Dominant Class ---------------- Mutant | -10/Materials Resources | -11 -10 ----------- Run | Yrd Mat Matter Collected 845 | 290 555 Remotely . | . . Salvage Created 913 | 114 799 Parts 55 | 12 43 Haulers Intercepted . | . . Recyclers Shooed 1 | 1 . Parts Field Recycled . | . . Retrieved Matter . | . . Parts Self-Destructed . | . . Prevented . | . . Kills | -11 -10 ------- Run | Yrd Mat Combat Hostiles Destroyed 16 | . 16 Guns 14 | . 14 AOE 2 | . 2 Classes Destroyed 7 | 2 5 Worker 2 | . 2 Tunneler 3 | 3 . Recycler 2 | 1 1 Swarmer 2 | . 2 Grunt 5 | . 5 Abomination 9 | . 9 Anomaly 1 | . 1 Best Kill Streak 4 | 4 4 Combat Bots Only 3 | . 3 Max Kills in Single Turn 2 | 2 2 Gunslinging . | . . Exploded 2 | . 2 Melee . | . . Uniques/NPCs Destroyed . | . . Combat | -11 -10 -------- Run | Yrd Mat Hostile Shots Fired 105 | . 105 Missed 27 | . 27 Hits 78 | . 78 Melee 12 | . 12 Projectile 66 | . 66 Critical Strikes 3 | . 3 Actively Blocked 1 | . 1 Damage Taken 1440 | . 1440 Core 254 | . 254 Absorbed by Shields . | . . Redirected to Shielding 30 | . 30 Core Remaining (%) 100 | 100 . Volleys Fired 97 | 10 87 Largest 2 | 2 2 Hottest 121 | 40 121 Shots Fired 186 | 20 166 Gun 182 | 20 162 Cannon . | . . Launcher 4 | . 4 Special . | . . Kinetic 107 | 20 87 Thermal 75 | . 75 Explosive 4 | . 4 Electromagnetic . | . . Robot Hit Streak 11 | 8 11 Robot Miss Streak 8 | 2 8 Penetration Max . | . . Secondary Targets 1 | . 1 Max Gunslinging Chain 1 | . 1 Shots Hit Robots 112 | 14 98 Core Hits 56 | 6 50 Critical Kills . | . . Critical Parts Destroyed 1 | 1 . Critical Strikes 4 | 1 3 Burn 3 | . 3 Destroy 1 | 1 . Melee Attacks . | . . Impact . | . . Slashing . | . . Piercing . | . . Sneak Attacks . | . . Combat Hostiles . | . . Follow-up Attacks . | . . Damage Inflicted 1578 | 133 1445 Guns 1456 | 133 1323 Cannons . | . . Explosions 122 | . 122 Melee . | . . Ramming . | . . Kinetic 800 | 133 667 Thermal 656 | . 656 Explosive 122 | . 122 Electromagnetic . | . . Impact . | . . Slashing . | . . Piercing . | . . Highest Corruption . | . . Average Corruption . | . . Corruption Purged . | . . Corruption Blocked . | . . Overload Shots . | . . Overflow Damage . | . . Projectiles . | . . Explosions . | . . Melee . | . . Knockbacks . | . . Impact . | . . Kinetic . | . . Secondary . | . . Self-Inflicted Damage . | . . Shots . | . . Rammed . | . . Targets Rammed . | . . Kicked . | . . Crushed . | . . Highest Temperature 390 | . 390 Average Temperature 97 | . 97 Received Heat Transfer 477 | . 477 Effects 5 | . 5 Interference 2 | . 2 Matter Decay 2 | . 2 Short Circuit 1 | . 1 Siege Activations . | . . Martial Activations . | . . Shielding Activations . | . . Robots Disrupted . | . . Combat Hostiles . | . . Robots Corrupted . | . . Combat Hostiles . | . . Parts Fried . | . . Impact Corruptions . | . . Robots Melted . | . . Combat Hostiles . | . . Parts Melted 2 | . 2 Heat Transferred 938 | . 938 Parts Sabotaged . | . . Parts Stolen . | . . Parts Stripped . | . . Power Chain Reactions . | . . Alert | -11 -10 ------- Run | Yrd Mat Maximum Alert Level . | . . Low Security (%) 100 | 100 100 Level 1 . | . . Level 2 . | . . Level 3 . | . . Level 4 . | . . Level 5 . | . . High Security . | . . Max Security . | . . Peak Influence 72 | 15 72 Initial . | . . Average 19 | 3 21 Influence Increases 270 | 20 250 Destroy 0b10 Robot/C 140 | . 140 Destroy 0b10 Robot/NC 35 | 20 15 Destroy Leader 20 | . 20 Successful Hack 30 | . 30 Disable Machine 30 | . 30 Lose Combat Pursuer 15 | . 15 Influence Decreases 251 | 20 231 Time Decay 211 | 20 191 Lost Part 40 | . 40 Squads Dispatched 3 | . 3 Investigation 2 | . 2 Extermination . | . . Reinforcement 1 | . 1 Assault . | . . Garrison . | . . Intercept . | . . Searches Triggered . | . . Construction Impeded . | . . Haulers Reinforced . | . . Active Scanning Responses . | . . Cargo Convoy Interrupts . | . . Stealth | -11 -10 --------- Run | Yrd Mat Distress Signals 2 | . 2 Communications Jammed . | . . Distress Signals . | . . Times Spotted 18 | . 18 Peak Tracking Total 5 | . 5 Tactical Retreats 1 | . 1 Traps | -11 -10 ------- Run | Yrd Mat Traps Triggered . | . . Indirectly . | . . Trap Hack Attempts . | . . Triggered . | . . Disarmed . | . . Reprogrammed . | . . Reused . | . . Traps Extracted . | . . Installed . | . . Triggered . | . . Machines | -11 -10 ---------- Run | Yrd Mat Machines Disabled 2 | . 2 Max in Single Turn 1 | . 1 Machines Repaired . | . . Machines Dismantled . | . . Machines Sabotaged . | . . Overloaded Fab Kills . | . . Hacking | -11 -10 --------- Run | Yrd Mat Machines Accessed 4 | . 4 Terminals 4 | . 4 Fabricators . | . . Repair Stations . | . . Recycling Units . | . . Scanalyzers . | . . Garrison Access . | . . Total Hacks 16 | . 16 Successful 10 | . 10 Failed 6 | . 6 Catastrophic 2 | . 2 Database Lockouts . | . . Manual 9 | . 9 Terminals 16 | . 16 Fabricators . | . . Repair Stations . | . . Recycling Units . | . . Scanalyzers . | . . Garrison Access . | . . Terminal Hacks 10 | . 10 Part Schematic 1 | . 1 Robot Schematic 2 | . 2 Robot Analysis 2 | . 2 Prototype ID Bank 2 | . 2 Terminal Index 1 | . 1 Locate Traps 1 | . 1 Hauler Manifests 1 | . 1 Fabricator Hacks . | . . Repair Station Hacks . | . . Recycling Unit Hacks . | . . Scanalyzer . | . . Garrison Access Hacks . | . . Unauthorized Hacks . | . . Terminals . | . . Fabricators . | . . Repair Stations . | . . Recycling Units . | . . Scanalyzers . | . . Garrison Access . | . . Data Cores Recovered . | . . Used . | . . Hacking Detections 4 | . 4 Full Trace Events 1 | . 1 Feedback Events . | . . Feedback Blocked . | . . Robot Schematics Acquired 2 | . 2 Robots Built . | . . Authchips . | . . Time . | . . Total Robot Build Rating . | . . Part Schematics Acquired 1 | . 1 Parts Built . | . . Authchips . | . . Time . | . . Total Part Build Rating . | . . Parts Repaired . | . . Time . | . . Parts Recycled . | . . Recycled Matter . | . . Retrieved Matter . | . . Retrieved Components . | . . Parts Scanalyzed . | . . Part Schematics Acquired . | . . Parts Damaged . | . . Bothacking | -11 -10 ------------ Run | Yrd Mat Used RIF Installer . | . . Robots Hacked . | . . Non-combat . | . . Combat . | . . Robot Hacks Applied . | . . Relay Couplers Released . | . . Fabnet Peak Effective % . | . . Robots Rewired . | . . Allies Hacked . | . . Hacks Repelled . | . . Allies | -11 -10 -------- Run | Yrd Mat Total Allies . | . . Largest Group . | . . Highest-Rated Group . | . . Highest-Rated Ally . | . . Total Orders . | . . Ally Attacks . | . . Total Damage . | . . Kills . | . . Allies Corrupted . | . . Allies Melted . | . . Intel | -11 -10 ------- Run | Yrd Mat Active Infowar (turns) 378 | 60 318 Seismic 378 | 60 318 Robot Analysis Total 2 | . 2 Derelict Logs Recovered . | . . Drone Launches . | . . Drone Recoveries . | . . Exploration | -11 -10 ------------- Run | Yrd Mat Turns Passed 872 | 131 741 Spaces Moved 290 | 56 234 Core 3 | 3 . Treads 154 | 53 101 Legs 86 | . 86 Wheels 47 | . 47 Hover . | . . Flight . | . . Fastest Speed 50 | 50 95 Average Speed 162 | 154 163 Slowest Speed 330 | 160 330 Overloaded Moves . | . . Propulsion Burnouts . | . . Robots Hopped . | . . Potential Cave-ins . | . . Cave-ins Triggered . | . . Exploration Rate (%) 30 | 5 55 Regions Visited 1 Branch Regions . Pre-discovered Areas . | . . Known Exits Taken . | . . Unknown Exits Taken 1 | 1 . Scrap Searched . | . . Spaces Dug . | . . Terrain Destroyed 4 | . 4 Melee . | . . Projectile . | . . AOE 4 | . 4 Terrain Rammed . | . . Walls Destroyed . | . . Machines Disabled . | . . Actions | -11 -10 --------- Run | Yrd Mat Total 472 | 81 391 Wait 36 | 1 35 Move 289 | 55 234 Hop . | . . Pick Up 21 | 8 13 Fast Attach 9 | 7 2 Attach 10 | . 10 Detach . | . . Swap 4 | . 4 Drop 6 | . 6 Fire 97 | 10 87 Melee . | . . Ram . | . . Kick . | . . Crush . | . . Escape Stasis . | . . Rewire . | . . Trap . | . . Miscellaneous . | . . Route ------- -11/Scrapyard -10/Materials (discovered 2 exits: [*Mat x2]) History --------- Turn | Location | Event 7 | -11/Scrapyard | Discovered new exit (range 15) 132 | -11/Scrapyard | Entered Materials 314 | -10/Materials | Build established: Mutant 453 | -10/Materials | Core integrity fell below 50% 481 | -10/Materials | Lost 6 parts (1p2n1u2w) 524 | -10/Materials | Core integrity fell below 20% 570 | -10/Materials | Lost 3 parts (2n1w) 602 | -10/Materials | Discovered new exit (range 15) 786 | -10/Materials | Discovered new exit (range 13) 873 | -10/Materials | Destroyed by Lesser Abomination with Particle Cannon Last Messages --------------- 00844_ K-01 Serf collects debris. 00863_ Acquired Prototype Engine. 00863_ Identified Hvy. Ion Engine. 00863_ Faulty integration damages Aluminum Leg (-12). 00864_ Corrupted Ion Engine springs to life within a quantum being. 00865_ Lesser Abomination absorbs Particle Cannon, Core Shielding, Aluminum Leg, Aluminum Leg, Aluminum Leg. 00866_ Lesser Abomination absorbs Core Shielding. 00866_ K-01 Serf collects debris. 00868_ Lesser Abomination absorbs Wheel. 00871_ K-01 Serf collects debris. 00872_ Lesser Abomination absorbs Terrain Scan Processor. 00873_ Lesser Abomination absorbs Lrg. Storage Unit. 00873_ Aluminum Leg destroyed. Map ----- +----------------------------------------------------+ | ????# #?#! = #?????????????????????????????? | | ????# #?#####+#####?????????????????????????????? | | ????# ##### #??###############???????????????? | | ????# #### """ """ # #???????????????? | | ????# + """ """ # #???????????????? | | ?####+###### #### """ """ # #???????????????? | | ?# = #### #??# + #???????????????? | | ?#" #??# " ?# # ????????? | | ?#T #? " " ?# = # ????? | | ?#" """ ## " " ?# # ?????? | | ?# """ # " " ?# # ###########?????? | | ?# """ ## " " ###########; #???????????????? | | ?# ## " " #????????? ; "???????????????? | | ?# # " " #????????? ; ; ?????????????? | | ?########### ; " #????????? ; ; "?????????????? | | ?????#######"";%; #????????? ; ; ""????????????? | | ?????? ;; ; #????????# ; ; ""????????????? | | ??????"" ;; ; ######### ; ; """???????????? | | ????#""" ;;%;; ## ## # ; ; """?"?????????? | | ????#""" ; % ; ; ;;;#;;#?????????? | | ????# ; %;;;;;;;;;;;;; ; ?????????? | | ????#""" # % % %;;;;;;;"????????? | | ????#""" + % ????????? | | ????#""" # k ;;;;;;;;"???????? | | ????# ; ;;;;;; ;; ;; ???????? | | ????########;; %%;;;;; =@ ; #??????????????? | | ?????????# % ; % = | [ #??????????????? | | ?????????# ; = |% # ##??????????????? | | ?????????# ; T A =*#?####???????????????? | | ?????????# ; %" = #????????????????????? | | ?????????# ; / #????????????????????? | | ?????????# ; #????##??????????????? | | ?????????##";; ;;;; ##### ###########????? | | ?????######"" ; # # ???? | | ?????# ; ; ;;;"" ??? | | ?????# < " ; ; ; """""""""""""""""??? | | ?????# # ;^ % ??? | | ?????#""""""" # ; ^ """""""""""""""??? | | ????##""""""""""""### ; " " " ?? | | ????# " #?##; %%T"" " T ?? | | ????##" """ #??#" """"""""" " "? | | ?????#" """"" #??# "" " " "? | | ?????## """"" #??# " " " | | ??????# """"" #??# % " " "% | | ??????# """ #??# """""""""" | | ??????# #??# """"""" % | | ??????######+######??###"""""""""""% """"""""""" | | ??????????# ########### " =" " "" | | ??????????# # ## " %"" " " #########? | | ???????##?# + ### " """ " #????????? | +----------------------------------------------------+ Best States ------------- Heat Dissipation 25 Energy Generation 10 Energy Capacity 250 Matter Stores 300 Matter Capacity 300 Sight Range 16 Terrain Scan Density 10 Core Shielding 20 Evasion (%) 41 Recoil Reduction 2 Item Schematics ----------------- Huge Storage Unit | -10/Materials | Hacked Robot Schematics ------------------ M-13 Machinist | -10/Materials | Hacked G-34 Mercenary | -10/Materials | Hacked Fabricated ------------ Nothing Repaired ---------- Nothing Alien Tech Used ----------------- None Achievements -------------- None Challenges ------------ None Game ------ Seed PhysicsDataExtrapolator Manual? 0 Play Time 00:12:50 Cumulative 761.4 hours Start 2025.08.07 @ 12:48:59 End 2025.08.07 @ 12:59:17 Sessions 1 Manual Loads 0 Difficulty Rogue Special Mode Halloween2019/Abominations Game No. 291 Rogue 287 Adventurer 4 Explorer 0 Win Type - Total 13 Types 7/1/1/1/0/1/0/1/0/1 Lore% 94 Gallery% 89 Achievement% 87 Wizard Run 0 Options --------- Layout 2 ASCII 0 Keyboard 0 Movement Numpad Keybinds 0 Fullscreen 2 Font 24/Smallcaps Map View 50x44 Zoom Use 0% Tactical HUD 1 Map Filters SHIFT_HUE(80) Filters SHIFT_HUE(280) Steam X RUN: a681fd60-9418-4b73-91da-33960da94e28